fUST/lending_fUST_20250203
["ID","MTS","AMOUNT","RATE_DAILY","PERIOD"]
[351374901,1738547454595,-208.036788,0.00017534,2]
[351374902,1738547454606,-608.45,0.00017534,2]
[351374903,1738547454616,-500.0,0.00017534,2]
[351374904,1738547454626,-208.036788,0.00017534,2]
[351374905,1738547454636,-500.0,0.00017534,2]
[351374906,1738547454646,-1567.85,0.00017534,2]
[351374907,1738547454657,-500.0,0.00017534,2]
[351374908,1738547454667,-804.26,0.00017534,2]
[351374909,1738547454677,-644.9,0.00017534,2]
[351374910,1738547454686,-6458.91,0.00017534,2]
[351374911,1738547454695,-500.0,0.00017534,2]
[351374912,1738547454704,-746.7,0.00017534,2]
[351374913,1738547454714,-500.0,0.00017534,2]
[351374914,1738547454723,-500.0,0.00017534,2]
[351374915,1738547454733,-1732.28,0.00017534,2]
[351374916,1738547454743,-931.28,0.00017534,2]
[351374917,1738547454752,-500.0,0.00017534,2]
[351374918,1738547454762,-691.39,0.00017534,2]
[351374919,1738547454772,-793.98,0.00017534,2]
[351374920,1738547454782,-1667.79,0.00017534,2]
[351374921,1738547454792,-500.0,0.00017534,2]
[351374922,1738547454806,-500.0,0.00017534,2]
[351374923,1738547454819,-3854.64,0.00017534,2]
[351374924,1738547454831,-500.0,0.00017534,2]
[351374925,1738547454841,-500.0,0.00017534,2]
[351374926,1738547454853,-705.89,0.00017534,2]
[351374927,1738547454864,-697.8,0.00017534,2]
[351374929,1738547454875,-2564.36,0.00017534,2]
[351374930,1738547454886,-500.0,0.00017534,2]
[351374931,1738547454896,-248.64556971,0.00017555,2]
[351374932,1738547454907,-248.64556971,0.0001759,2]
[351374933,1738547454918,-10471.56,0.000176,2]
[351374934,1738547454928,-322.862633,0.000176,2]
[351374935,1738547454939,-322.862633,0.000176,2]
[351374936,1738547454949,-424.326815,0.000176,2]
[351374937,1738547454960,-424.326815,0.000176,2]
[351374938,1738547454970,-151.0,0.000176,2]
[351374939,1738547454982,-1257.10524287,0.000176,2]
[351374940,1738547454992,-401.0,0.0001761,2]
[351374941,1738547455003,-687.7978136,0.00017621,2]
[351374942,1738547455013,-248.64556971,0.00017624,2]
[351374943,1738547455025,-1257.10524281,0.00017633,2]
[351374944,1738547455037,-248.64556971,0.00017659,2]
[351374945,1738547455048,-1257.10524281,0.00017667,2]
[351374946,1738547455063,-151.0,0.00017671,2]
[351374947,1738547455074,-151.0,0.00017671,2]
[351374948,1738547455085,-151.0,0.00017671,2]
[351374949,1738547455096,-151.0,0.00017671,2]
[351374950,1738547455107,-500.0,0.00017671,2]
[351374951,1738547455118,-151.0,0.00017671,2]
[351374952,1738547455128,-151.0,0.00017671,2]
[351374953,1738547455139,-166.857432,0.00017671,2]
[351374954,1738547455149,-166.857432,0.00017671,2]
[351374955,1738547455160,-151.0,0.00017671,2]
[351374956,1738547455171,-151.0,0.00017671,2]
[351374957,1738547455181,-500.0,0.00017671,2]
[351374958,1738547455193,-515.96389331,0.00017671,2]
[351374959,1738547455203,-500.0,0.00017671,2]
[351374960,1738547455217,-580.87,0.00017671,2]
[351374962,1738547455230,-500.0,0.00017671,2]
[351374963,1738547455241,-500.0,0.00017671,2]
[351374964,1738547455251,-500.0,0.00017671,2]
[351374965,1738547455264,-500.0,0.00017671,2]
[351374966,1738547455275,-509.83,0.00017671,2]
[351374967,1738547455285,-1402.8,0.00017671,2]
[351374968,1738547455295,-897.88,0.00017671,2]
[351374969,1738547455411,-500.0,0.00017671,2]
[351374970,1738547455426,-1648.06,0.00017671,2]
[351374971,1738547455436,-2683.97,0.00017671,2]
[351374972,1738547455446,-500.0,0.00017671,2]
[351374973,1738547455457,-6901.59,0.00017671,2]
[351374974,1738547455467,-6611.72,0.00017671,2]
[351374975,1738547455478,-895.24,0.00017671,2]
[351374976,1738547455487,-500.0,0.00017671,2]
[351374977,1738547455497,-608.45,0.00017671,2]
[351374978,1738547455507,-500.0,0.00017671,2]
[351374979,1738547455517,-500.0,0.00017671,2]
[351374980,1738547455528,-1567.85,0.00017671,2]
[351374981,1738547455538,-500.0,0.00017671,2]
[351374982,1738547455548,-804.26,0.00017671,2]
[351374983,1738547455562,-644.9,0.00017671,2]
[351374984,1738547455573,-6458.91,0.00017671,2]
[351374985,1738547455583,-500.0,0.00017671,2]
[351374986,1738547455594,-746.7,0.00017671,2]
[351374987,1738547455604,-500.0,0.00017671,2]
[351374988,1738547455615,-610.6959295,0.00017671,2]
[351374989,1738547455625,-1732.28,0.00017671,2]
[351374990,1738547455635,-931.28,0.00017671,2]
[351374991,1738547455646,-500.0,0.00017671,2]
[351374992,1738547455656,-691.39,0.00017671,2]
[351374993,1738547455666,-793.98,0.00017671,2]
[351374994,1738547455676,-1667.79,0.00017671,2]
[351374995,1738547455685,-286.55494997,0.00017671,2]
[351374996,1738547455696,-500.0,0.00017671,2]
[351374997,1738547455708,-3854.64,0.00017671,2]
[351374998,1738547455719,-500.0,0.00017671,2]
[351374999,1738547455728,-500.0,0.00017671,2]
[351375000,1738547455738,-705.89,0.00017671,2]
[351375001,1738547455748,-697.8,0.00017671,2]
[351375002,1738547455757,-2564.36,0.00017671,2]
[351375003,1738547455767,-500.0,0.00017671,2]
[351375004,1738547455777,-1000.0,0.00017672,2]
[351375005,1738547455786,-478.92831203,0.0001769,2]
[351375006,1738547455796,-248.64556971,0.00017693,2]
[351375007,1738547455809,-2000.0,0.000177,2]
[351375008,1738547455819,-2000.0,0.000177,2]
[351375009,1738547455829,-151.0,0.000177,2]
[351375010,1738547455839,-151.0,0.000177,2]
[351375011,1738547455850,-710.784779,0.000177,2]
[351375012,1738547455861,-384.59044,0.000177,2]
[351375013,1738547455871,-710.784779,0.000177,2]
[351375014,1738547455882,-384.59044,0.000177,2]
[351375015,1738547455892,-151.0,0.000177,2]
[351375016,1738547455903,-1257.10524281,0.000177,2]
[351375017,1738547455913,-248.64556971,0.00017728,2]
[351375018,1738547455924,-167.991129,0.0001773,3]
[351375019,1738547455935,-1257.10524281,0.00017733,2]
[351375020,1738547455946,-1200.0,0.0001775,2]
[351375021,1738547455957,-248.64556971,0.00017762,2]
[351375022,1738547455968,-1257.10524281,0.00017767,2]
[351375023,1738547455980,-500.51046637,0.00017773,2]
[351375024,1738547455990,-501.32680443,0.00017773,2]
[351375025,1738547456000,-500.0,0.00017773,2]
[351375026,1738547456010,-500.1870777,0.00017773,2]
[351375027,1738547456022,-167.991129,0.00017774,3]
[351375028,1738547456032,-500.0,0.00017781,2]
[351375029,1738547456042,-248.64556971,0.00017797,2]
[351375030,1738547456055,-1281.03941102,0.00017798,2]
[351375031,1738547456065,-213.183371,0.00017799,2]
[351375032,1738547456075,-152.507024,0.00017799,2]
[351375033,1738547456085,-115240.1319613,0.000178,5]
[351375034,1738547456095,-24078.61801441,0.000178,5]
[351375035,1738547456105,-509589.21804273,0.000178,15]
[351375036,1738547456157,-143855.7216867,0.000178,15]
[351375037,1738547456169,-1350.00000001,0.000178,15]
[351375040,1738547456483,-500.0,0.00016438,2]
[351375041,1738547456492,-500.0,0.00016438,2]
[351375042,1738547456502,-500.0,0.00016575,2]
[351375043,1738547456513,-500.0,0.00016575,2]
[351375044,1738547456523,-500.0,0.00016712,2]
[351375045,1738547456534,-500.0,0.00016712,2]
[351375046,1738547456543,-500.0,0.00016849,2]
[351375047,1738547456556,-500.0,0.00016849,2]
[351375048,1738547456565,-265.1800507,0.00016986,2]
[351375049,1738547456643,-265.5,0.00016438,2]
[351375050,1738547456656,-234.5,0.00016438,2]
[351375051,1738547456667,-234.8199493,0.00016986,2]
[351375052,1738547456677,-500.0,0.00016986,2]
[351375053,1738547456688,-500.0,0.00017123,2]
[351375054,1738547456698,-500.0,0.00017123,2]
[351375055,1738547456708,-500.0,0.0001726,2]
[351375056,1738547456718,-500.0,0.0001726,2]
[351375057,1738547456728,-150.087,0.00017267,2]
[351375058,1738547456738,-396.0,0.00017267,2]
[351375059,1738547456750,-507.32248357,0.00017397,2]
[351375060,1738547456760,-500.0,0.00017397,2]
[351375061,1738547456769,-500.0,0.00017534,2]
[351375062,1738547456779,-500.0,0.00017671,2]
[351375063,1738547456789,-17724.27056713,0.000178,15]
[351375064,1738547456808,-139790.46042066,0.000178,15]
[351375065,1738547456820,-581.40387878,0.000178,15]
[351375066,1738547456832,-533.1788555,0.000178,15]
[351375067,1738547456864,-512.04073648,0.00016575,2]
[351375068,1738547456875,-611.6880163,0.000178,15]
[351375069,1738547456937,-500.0,0.00016438,2]
[351375070,1738547456947,-500.0,0.00016575,2]
[351375071,1738547456956,-482.69617402,0.0001726,2]
[351375072,1738547456968,-17.30382598,0.0001726,2]
[351375074,1738547456977,-500.0,0.00017397,2]
[351375075,1738547456986,-160.0,0.00017558,4]
[351375076,1738547456996,-5923.04810749,0.000178,15]
[351375077,1738547457008,-335.705,0.000178,15]
[351375078,1738547457020,-10592.0,0.000178,15]
[351375079,1738547457032,-15653.40909096,0.000178,15]
[351375080,1738547457044,-47500.00000003,0.000178,15]
[351375081,1738547457060,-289.3740023,0.000178,15]
[351375082,1738547457071,-2097.05296,0.000178,15]
[351375083,1738547457087,-475.0,0.000178,15]
[351375084,1738547457099,-3880.00000001,0.000178,15]
[351375085,1738547457111,-10772.73199828,0.000178,15]
[351375086,1738547457128,-500.0,0.00017534,2]
[351375087,1738547457138,-1394.88638209,0.000178,15]
[351375088,1738547457151,-2597.46,0.000178,15]
[351375089,1738547457162,-45531.2583898,0.000178,15]
[351375090,1738547457172,-1425.0,0.000178,15]
[351375091,1738547457184,-5640.0000006,0.000178,15]
[351375092,1738547457196,-300.00000004,0.000178,15]
[351375093,1738547457208,-1900.0,0.000178,15]
[351375094,1738547457426,-300.0,0.00016,4]
[351375095,1738547457436,-175.0,0.00016438,2]
[351375096,1738547457448,-325.0,0.00016438,2]
[351375097,1738547457458,-508.22663796,0.00016438,2]
[351375098,1738547457468,-500.0,0.00016438,2]
[351375099,1738547457477,-500.0,0.00016712,2]
[351375100,1738547457486,-500.0,0.00016849,2]
[351375101,1738547457499,-500.0,0.00016986,2]
[351375102,1738547457520,-500.0,0.00017123,2]
[351375103,1738547457535,-160.0,0.00017215,3]
[351375104,1738547457547,-500.0,0.0001726,2]
[351375105,1738547457562,-500.0,0.00017397,2]
[351375106,1738547457573,-500.0,0.00017534,2]
[351375107,1738547457584,-500.0,0.00017671,2]
[351375108,1738547457595,-224.46586077,0.00017671,2]
[351375109,1738547457606,-64648.30750127,0.000178,15]
[351375110,1738547457621,-2866.09976377,0.000178,15]
[351375111,1738547457634,-9272.13001975,0.000178,15]
[351375112,1738547457740,-16200.0,0.000178,15]
[351375113,1738547457847,-2246.22281536,0.000178,15]
[351375114,1738547457859,-3205.02178737,0.000178,15]
[351375115,1738547457870,-686.50625129,0.000178,15]
[351375116,1738547457882,-4718.1,0.000178,15]
[351375117,1738547457893,-365464.10873644,0.000178,15]
[351375118,1738547457916,-500.0,0.00016575,2]
[351375119,1738547457925,-1377.6,0.000178,15]
[351375120,1738547457937,-149618.74335536,0.000178,15]
[351375121,1738547457948,-3241.78482194,0.000178,15]
[351375140,1738547467605,500.0,0.00014657,2]
[351375325,1738547574998,153.0,0.00013699,2]
[351375328,1738547575807,153.0,0.00013699,2]
[351375329,1738547576028,153.0,0.00013699,2]
[351375330,1738547576259,153.0,0.00013699,2]
[351375332,1738547576478,153.0,0.00013699,2]
[351375333,1738547576699,153.0,0.00013699,2]
[351375340,1738547581496,153.0,0.00013699,2]
[351375341,1738547581713,153.0,0.00013699,2]
[351375421,1738547626039,153.0,0.00013699,2]
[351375422,1738547626244,153.0,0.00013699,2]
[351375424,1738547626456,153.0,0.00013699,2]
[351375425,1738547626672,153.0,0.00013699,2]
[351375426,1738547626890,153.0,0.00013699,2]
[351375438,1738547632730,153.0,0.00013699,2]
[351375439,1738547632940,153.0,0.00013699,2]
[351375532,1738547689538,153.0,0.00013699,2]
[351375533,1738547689757,153.0,0.00013699,2]
[351375534,1738547689965,153.0,0.00013699,2]
[351375535,1738547690185,153.0,0.00013699,2]
[351375546,1738547694636,153.0,0.00013699,2]
[351375612,1738547746739,153.0,0.00013699,2]
[351375613,1738547747158,153.0,0.00013699,2]
[351375614,1738547747234,153.0,0.00013699,2]
[351375633,1738547757667,153.0,0.00013699,2]
[351376022,1738548014905,500.0,0.00014657,2]
[351376211,1738548106249,62.4863198,0.00013699,2]
[351376212,1738548106286,90.5136802,0.00013699,2]
[351376216,1738548107077,153.0,0.00013699,2]
[351376222,1738548110985,153.0,0.00013699,2]
[351376319,1738548158578,-24900.0,0.00015268,2]
[351376320,1738548158605,-292.3311091,0.00015328,2]
[351376321,1738548158630,-430.264259,0.00015372,2]
[351376322,1738548158655,-300.0,0.00016,4]
[351376323,1738548158681,-500.0,0.00016027,2]
[351376324,1738548158707,-1124.33531783,0.000163,2]
[351376325,1738548158737,-1813.05410654,0.00016337,2]
[351376326,1738548158763,-300.0,0.00016337,2]
[351376327,1738548158788,-209.16879637,0.00016338,2]
[351376328,1738548158815,-37061.38285816,0.00016338,2]
[351376329,1738548158843,-3000.0,0.000164,2]
[351376330,1738548158875,-3000.0,0.0001641,2]
[351376331,1738548158901,-3000.0,0.0001642,2]
[351376332,1738548158927,-3321.729776,0.0001643,2]
[351376333,1738548158952,-500.0,0.00016436,2]
[351376334,1738548158983,-500.0,0.00016436,2]
[351376335,1738548159012,-500.0,0.00016436,2]
[351376336,1738548159037,-500.0,0.00016436,2]
[351376337,1738548159064,-500.0,0.00016436,2]
[351376338,1738548159090,-500.0,0.00016436,2]
[351376339,1738548159117,-500.0,0.00016436,2]
[351376340,1738548159143,-500.0,0.00016436,2]
[351376342,1738548159169,-500.0,0.00016436,2]
[351376343,1738548159196,-500.0,0.00016436,2]
[351376344,1738548159227,-294.98782356,0.00016436,2]
[351376345,1738548159252,-640.6929682,0.00016436,2]
[351376346,1738548159277,-629.80790373,0.00016436,2]
[351376347,1738548159301,-500.0,0.00016436,2]
[351376348,1738548159326,-526.35462843,0.00016436,2]
[351376349,1738548159351,-500.0,0.00016436,2]
[351376350,1738548159375,-500.0,0.00016436,2]
[351376351,1738548159401,-500.0,0.00016436,2]
[351376352,1738548159424,-500.0,0.00016436,2]
[351376353,1738548159450,-500.0,0.00016436,2]
[351376354,1738548159485,-500.0,0.00016436,2]
[351376355,1738548159514,-500.0,0.00016436,2]
[351376356,1738548159541,-500.0,0.00016436,2]
[351376357,1738548159568,-500.0,0.00016436,2]
[351376358,1738548159596,-512.57218011,0.00016436,2]
[351376359,1738548159624,-500.0,0.00016436,2]
[351376360,1738548159650,-500.0,0.00016436,2]
[351376361,1738548159674,-500.0,0.00016436,2]
[351376362,1738548159698,-500.0,0.00016436,2]
[351376363,1738548159729,-500.0,0.00016436,2]
[351376364,1738548159760,-500.0,0.00016436,2]
[351376365,1738548159788,-500.0,0.00016436,2]
[351376366,1738548159817,-500.0,0.00016436,2]
[351376367,1738548159844,-500.0,0.00016436,2]
[351376368,1738548159869,-500.0,0.00016436,2]
[351376369,1738548159894,-500.0,0.00016436,2]
[351376370,1738548159920,-500.0,0.00016436,2]
[351376371,1738548159946,-500.0,0.00016436,2]
[351376372,1738548160089,-500.0,0.00016436,2]
[351376373,1738548160117,-500.0,0.00016436,2]
[351376374,1738548160145,-500.0,0.00016436,2]
[351376375,1738548160170,-500.0,0.00016436,2]
[351376376,1738548160197,-500.0,0.00016436,2]
[351376377,1738548160226,-500.0,0.00016436,2]
[351376378,1738548160251,-500.0,0.00016436,2]
[351376379,1738548160274,-500.0,0.00016436,2]
[351376380,1738548160299,-500.0,0.00016436,2]
[351376381,1738548160322,-281.59396342,0.00016436,2]
[351376383,1738548160346,-500.0,0.00016436,2]
[351376384,1738548160370,-500.0,0.00016436,2]
[351376385,1738548160394,-500.0,0.00016436,2]
[351376386,1738548160420,-500.0,0.00016436,2]
[351376387,1738548160447,-500.0,0.00016436,2]
[351376389,1738548160481,-500.0,0.00016436,2]
[351376390,1738548160509,-500.0,0.00016436,2]
[351376391,1738548160536,-500.0,0.00016436,2]
[351376392,1738548160566,-500.0,0.00016436,2]
[351376393,1738548160595,-500.0,0.00016436,2]
[351376394,1738548160628,-500.0,0.00016436,2]
[351376395,1738548160665,-500.0,0.00016436,2]
[351376396,1738548160696,-500.0,0.00016436,2]
[351376397,1738548160730,-500.0,0.00016436,2]
[351376399,1738548160763,-500.0,0.00016436,2]
[351376400,1738548160789,-272.55716235,0.00016436,2]
[351376402,1738548160817,-500.0,0.00016436,2]
[351376403,1738548160847,-500.0,0.00016436,2]
[351376405,1738548160873,-500.0,0.00016436,2]
[351376406,1738548160897,-500.0,0.00016437,2]
[351376407,1738548160922,-500.0,0.00016437,2]
[351376408,1738548160946,-331.62887235,0.00016437,2]
[351376410,1738548160987,-503.53800172,0.00016437,2]
[351376411,1738548161012,-500.0,0.00016438,2]
[351376412,1738548161038,-500.0,0.00016438,2]
[351376413,1738548161068,-504.85670148,0.00016438,2]
[351376414,1738548161092,-502.5535157,0.00016438,2]
[351376415,1738548161119,-500.0,0.00016438,2]
[351376416,1738548161146,-500.0,0.00016438,2]
[351376417,1738548161172,-502.13432064,0.00016438,2]
[351376418,1738548161198,-502.72719933,0.00016438,2]
[351376419,1738548161228,-503.04839877,0.00016438,2]
[351376420,1738548161255,-501.87037942,0.00016438,2]
[351376421,1738548161281,-502.43896301,0.00016438,2]
[351376422,1738548161306,-234.37079478,0.00016438,2]
[351376453,1738548177618,153.0,0.00013699,2]
[351376455,1738548177832,153.0,0.00013699,2]
[351376457,1738548178057,153.0,0.00013699,2]
[351376465,1738548181837,153.0,0.00013699,2]
[351376660,1738548285309,153.0,0.00013699,2]
[351376661,1738548285534,153.0,0.00013699,2]
[351376670,1738548289851,153.0,0.00013699,2]
[351376775,1738548349605,153.0,0.00013699,2]
[351376776,1738548349813,153.0,0.00013699,2]
[351377049,1738548501431,500.0,0.00014657,2]
[351377118,1738548541016,10000.0,0.00018,30]
[351377214,1738548577998,214.216469,0.00013973,2]
[351377260,1738548609535,5000.0,0.00014147,2]
[351377263,1738548609826,5000.0,0.00014147,2]
[351377266,1738548610134,5000.0,0.00014147,2]
[351377267,1738548610421,2512.2698508,0.00014147,2]
[351377268,1738548610457,2487.7301492,0.00014147,2]
[351377269,1738548610734,5000.0,0.00014147,2]
[351377407,1738548633056,-996.1972926,0.00015669,2]
[351377408,1738548633067,-500.0,0.00016027,2]
[351377409,1738548633078,-121.30166625,0.00016338,2]
[351377411,1738548633091,-51.96986673,0.00016338,2]
[351377412,1738548633101,-502.05872287,0.00016338,2]
[351377420,1738548636338,-540.68627507,0.00016338,2]
[351377421,1738548636349,-497.46164589,0.00016338,2]
[351377422,1738548636362,-252.76129741,0.00016338,2]
[351377423,1738548636375,-266.250468,0.00016338,2]
[351377424,1738548636389,-399.96608302,0.00016338,2]
[351377425,1738548636399,-300.0,0.00016436,2]
[351377426,1738548636411,-386.08140088,0.00016437,2]
[351377427,1738548636422,-181.08976708,0.00016437,2]
[351377428,1738548636432,-500.0,0.00016437,2]
[351377429,1738548636442,-74.77844071,0.00016437,2]
[351377430,1738548636457,-425.22155929,0.00016437,2]
[351377431,1738548636468,-500.0,0.00016437,2]
[351377432,1738548636479,-500.0,0.00016437,2]
[351377433,1738548636490,-228.64234668,0.00016437,2]
[351377434,1738548636503,-190.53067136,0.00016437,2]
[351377435,1738548636513,-500.0,0.00016437,2]
[351377436,1738548636524,-501.25721801,0.00016437,2]
[351377437,1738548636537,-552.47660121,0.00016437,2]
[351377438,1738548636547,-232.14021065,0.00016437,2]
[351377439,1738548636557,-500.0,0.00016437,2]
[351377440,1738548636567,-184.27439982,0.00016438,2]
[351377441,1738548636578,-502.39192382,0.00016438,2]
[351377443,1738548636598,-503.31550951,0.00016438,2]
[351377445,1738548636615,-508.97992118,0.00016438,2]
[351377447,1738548636626,-516.17430507,0.00016438,2]
[351377448,1738548636639,-498.55568629,0.00016438,2]
[351377449,1738548636650,-183.80605015,0.00016438,2]
[351377450,1738548636660,-500.0,0.00016438,2]
[351377451,1738548636670,-502.15033407,0.00016438,2]
[351377452,1738548636680,-512.58845637,0.00016438,2]
[351377453,1738548636691,-500.0,0.00016438,2]
[351377454,1738548636701,-501.23271537,0.00016438,2]
[351377455,1738548636711,-206.53978347,0.00016438,2]
[351377456,1738548636721,-500.0,0.00016438,2]
[351377457,1738548636733,-505.32571811,0.00016438,2]
[351377458,1738548636743,-502.82279678,0.00016438,2]
[351377459,1738548636753,-503.205071,0.00016438,2]
[351377460,1738548636764,-502.15015347,0.00016438,2]
[351377461,1738548636774,-504.55704135,0.00016438,2]
[351377462,1738548636784,-501.97567683,0.00016438,2]
[351377463,1738548636794,-506.49205858,0.00016438,2]
[351377464,1738548636804,-354.18956965,0.00016438,2]
[351377465,1738548636814,-502.68344302,0.00016438,2]
[351377466,1738548636823,-500.0,0.00016438,2]
[351377467,1738548636832,-503.4542153,0.00016438,2]
[351377468,1738548636842,-500.0,0.00016438,2]
[351377469,1738548636852,-545.77269703,0.00016438,2]
[351377470,1738548636861,-500.0,0.00016438,2]
[351377471,1738548636871,-500.0,0.00016438,2]
[351377472,1738548636880,-500.0,0.00016438,2]
[351377473,1738548636893,-452.80098528,0.00016438,2]
[351377474,1738548636903,-501.73197781,0.00016438,2]
[351377475,1738548636914,-500.0,0.00016438,2]
[351377476,1738548636925,-500.0,0.00016438,2]
[351377477,1738548636938,-503.92210671,0.00016438,2]
[351377478,1738548636948,-498.57561865,0.00016438,2]
[351377479,1738548636956,-268.03569651,0.00016438,2]
[351377480,1738548636965,-500.0,0.00016438,2]
[351377481,1738548636975,-495.0,0.00016438,2]
[351377482,1738548636984,-503.2383683,0.00016438,2]
[351377483,1738548636992,-503.32430418,0.00016438,2]
[351377484,1738548637001,-500.0,0.00016438,2]
[351377485,1738548637009,-615.72361604,0.00016438,2]
[351377486,1738548637018,-500.0,0.00016438,2]
[351377487,1738548637026,-500.58964941,0.00016438,2]
[351377488,1738548637033,-502.18856193,0.00016438,2]
[351377489,1738548637039,-500.86307498,0.00016438,2]
[351377490,1738548637046,-500.0,0.00016438,2]
[351377491,1738548637052,-538.03474759,0.00016438,2]
[351377492,1738548637059,-500.0,0.00016438,2]
[351377493,1738548637066,-500.0,0.00016438,2]
[351377494,1738548637074,-438.54753571,0.00016438,2]
[351377495,1738548637082,-500.0,0.00016438,2]
[351377496,1738548637089,-500.0,0.00016438,2]
[351377497,1738548637096,-501.80761296,0.00016438,2]
[351377498,1738548637102,-505.09110915,0.00016438,2]
[351377499,1738548637109,-501.27098547,0.00016438,2]
[351377500,1738548637117,-501.82413062,0.00016438,2]
[351377501,1738548637124,-594.3273108,0.00016438,2]
[351377502,1738548637134,-500.0,0.00016438,2]
[351377503,1738548637142,-500.0,0.00016438,2]
[351377504,1738548637149,-500.0,0.00016438,2]
[351377505,1738548637156,-364.80747935,0.00016438,2]
[351377506,1738548637164,-500.0,0.00016438,2]
[351377507,1738548637173,-500.0,0.00016438,2]
[351377508,1738548637183,-500.0,0.00016438,2]
[351377509,1738548637192,-500.79579241,0.00016438,2]
[351377510,1738548637202,-500.0,0.00016438,2]
[351377511,1738548637211,-500.0,0.00016438,2]
[351377512,1738548637221,-510.66524457,0.00016438,2]
[351377513,1738548637230,-504.5606495,0.00016438,2]
[351377514,1738548637240,-500.0,0.00016438,2]
[351377515,1738548637250,-500.0,0.00016438,2]
[351377516,1738548637259,-500.0,0.00016438,2]
[351377517,1738548637268,-500.0,0.00016438,2]
[351377518,1738548637278,-500.0,0.00016438,2]
[351377519,1738548637288,-501.10782749,0.00016438,2]
[351377520,1738548637298,-500.0,0.00016438,2]
[351377521,1738548637308,-503.91237531,0.00016438,2]
[351377522,1738548637318,-500.0,0.00016438,2]
[351377523,1738548637328,-504.1766968,0.00016438,2]
[351377524,1738548637337,-500.0,0.00016438,2]
[351377525,1738548637347,-501.00667363,0.00016438,2]
[351377526,1738548637356,-501.04464372,0.00016438,2]
[351377528,1738548637367,-501.89726979,0.00016438,2]
[351377530,1738548637378,-502.13547476,0.00016438,2]
[351377532,1738548637389,-506.67663468,0.00016438,2]
[351377533,1738548637399,-500.0,0.00016438,2]
[351377535,1738548637409,-500.0,0.00016438,2]
[351377536,1738548637419,-500.0,0.00016438,2]
[351377537,1738548637428,-503.88473912,0.00016438,2]
[351377538,1738548637438,-646.71503612,0.00016438,2]
[351377539,1738548637447,-537.39718677,0.00016438,2]
[351377540,1738548637457,-502.85085629,0.00016438,2]
[351377541,1738548637467,-500.0,0.00016438,2]
[351377545,1738548637479,-504.1968904,0.00016438,2]
[351377549,1738548637489,-500.0,0.00016438,2]
[351377550,1738548637499,-503.55807587,0.00016438,2]
[351377552,1738548637509,-501.80071472,0.00016438,2]
[351377555,1738548637519,-500.96381523,0.00016438,2]
[351377558,1738548637529,-500.0,0.00016438,2]
[351377560,1738548637539,-500.0,0.00016438,2]
[351377562,1738548637549,-500.00000001,0.00016438,2]
[351377564,1738548637559,-500.0,0.00016438,2]
[351377566,1738548637569,-500.0,0.00016438,2]
[351377570,1738548637580,-501.69797931,0.00016438,2]
[351377572,1738548637606,-500.0,0.00016438,2]
[351377574,1738548637621,-500.0,0.00016438,2]
[351377575,1738548637635,-502.181527,0.00016438,2]
[351377576,1738548637647,-500.80905806,0.00016438,2]
[351377577,1738548637658,-501.5001062,0.00016438,2]
[351377579,1738548637669,-502.11278613,0.00016438,2]
[351377581,1738548637680,-500.0,0.00016438,2]
[351377583,1738548637690,-504.47725592,0.00016438,2]